[Event "*** Titled Tuesday Blitz"]
[Site "Chess.com"]
[Date "2020.01.07"]
[Round "4"]
[White "Gogolev_Artemy"]
[Black "szefru"]
[Result "1-0"]
[WhiteElo "2452"]
[BlackElo "2135"]
[TimeControl "180+2"]
[EndTime "13:53:45 PST"]
[Termination "Gogolev_Artemy won by resignation"]

1. d4 {[%clk 0:03:01.9]} 1... d5 {[%clk 0:03:00.2]} 2. c4 {[%clk 0:03:01.7]}
2... c6 {[%clk 0:03:01.3]} 3. Nf3 {[%clk 0:03:01.8]} 3... Nf6 {[%clk 0:03:02.4]}
4. e3 {[%clk 0:03:01.4]} 4... a6 {[%clk 0:03:03.2]} 5. b3 {[%clk 0:02:58.3]}
5... e6 {[%clk 0:03:04]} 6. Bb2 {[%clk 0:02:57.9]} 6... Nbd7 {[%clk 0:03:02]} 7.
Nbd2 {[%clk 0:02:58.9]} 7... Bb4 {[%clk 0:03:01.7]} 8. Bd3 {[%clk 0:02:59.6]}
8... dxc4 {[%clk 0:03:00.7]} 9. bxc4 {[%clk 0:02:59.2]} 9... b5 {[%clk
0:03:01.1]} 10. O-O {[%clk 0:02:59.5]} 10... Bb7 {[%clk 0:02:54.1]} 11. c5
{[%clk 0:02:46.2]} 11... Nxc5 {[%clk 0:02:39.2]} 12. Bc2 {[%clk 0:02:33.6]}
12... Ncd7 {[%clk 0:02:31.9]} 13. Nb3 {[%clk 0:02:27.9]} 13... Rc8 {[%clk
0:02:16.3]} 14. Rc1 {[%clk 0:02:22.8]} 14... c5 {[%clk 0:02:13.6]} 15. a3 {[%clk
0:02:21.9]} 15... Ba5 {[%clk 0:02:11.3]} 16. dxc5 {[%clk 0:02:22]} 16... Nxc5
{[%clk 0:02:00.6]} 17. Nxa5 {[%clk 0:02:13.4]} 17... Qxa5 {[%clk 0:01:57.4]} 18.
Bxf6 {[%clk 0:02:01.4]} 18... gxf6 {[%clk 0:01:52.3]} 19. Qd4 {[%clk 0:02:02.4]}
19... Nd7 {[%clk 0:01:36.7]} 20. Be4 {[%clk 0:01:48.8]} 20... Rxc1 {[%clk
0:01:19.3]} 21. Rxc1 {[%clk 0:01:47.6]} 21... Qxa3 {[%clk 0:00:57.8]} 22. Ra1
{[%clk 0:01:36.2]} 22... e5 {[%clk 0:00:41.5]} 23. Rxa3 {[%clk 0:01:34.5]} 23...
exd4 {[%clk 0:00:41.9]} 24. Bxb7 {[%clk 0:01:35.5]} 24... dxe3 {[%clk
0:00:41.4]} 25. Rxe3+ {[%clk 0:01:33.1]} 25... Kd8 {[%clk 0:00:42.4]} 26. Bxa6
{[%clk 0:01:33.1]} 26... b4 {[%clk 0:00:38]} 27. Rb3 {[%clk 0:01:32]} 27... Nc5
{[%clk 0:00:38.9]} 28. Rxb4 {[%clk 0:01:27.2]} 28... Nxa6 {[%clk 0:00:39.1]} 29.
Rb6 {[%clk 0:01:28.4]} 29... Kc7 {[%clk 0:00:20.9]} 30. Rxa6 {[%clk 0:01:28.8]}
30... f5 {[%clk 0:00:21.9]} 31. g3 {[%clk 0:01:28.7]} 31... Kd7 {[%clk
0:00:19.3]} 32. Rf6 {[%clk 0:01:28.9]} 32... Ke7 {[%clk 0:00:20.4]} 33. Rxf5
{[%clk 0:01:30.1]} 33... h5 {[%clk 0:00:21.6]} 34. h4 {[%clk 0:01:30.5]} 34...
f6 {[%clk 0:00:21.3]} 35. Kg2 {[%clk 0:01:30.9]} 35... Ke6 {[%clk 0:00:22.5]}
36. Ra5 {[%clk 0:01:31.5]} 36... Rd8 {[%clk 0:00:22.2]} 37. Rxh5 {[%clk
0:01:30.7]} 37... f5 {[%clk 0:00:22.6]} 38. Rh6+ {[%clk 0:01:30.8]} 38... Kd5
{[%clk 0:00:22.9]} 39. Rf6 {[%clk 0:01:30.8]} 39... Ke4 {[%clk 0:00:23.4]} 40.
Re6+ {[%clk 0:01:31.8]} 40... Kd5 {[%clk 0:00:24]} 41. Re5+ {[%clk 0:01:32.7]}
1-0

[Event "*** Titled Tuesday Blitz"]
[Site "Chess.com"]
[Date "2020.01.07"]
[Round "4"]
[White "tteshan"]
[Black "MiroMiljkovic"]
[Result "0-1"]
[WhiteElo "2289"]
[BlackElo "2548"]
[TimeControl "180+2"]
[EndTime "13:53:53 PST"]
[Termination "MiroMiljkovic won by resignation"]

1. d4 {[%clk 0:03:01.9]} 1... Nf6 {[%clk 0:03:00.7]} 2. c4 {[%clk 0:03:02.8]}
2... e6 {[%clk 0:03:00.2]} 3. Nc3 {[%clk 0:03:03.8]} 3... Bb4 {[%clk 0:03:00.3]}
4. e3 {[%clk 0:03:05.1]} 4... O-O {[%clk 0:03:00.7]} 5. Bd3 {[%clk 0:03:06.2]}
5... d5 {[%clk 0:03:01.3]} 6. cxd5 {[%clk 0:03:07.4]} 6... exd5 {[%clk
0:03:01.9]} 7. Ne2 {[%clk 0:03:08.3]} 7... Re8 {[%clk 0:02:46]} 8. Bd2 {[%clk
0:03:09]} 8... c5 {[%clk 0:02:43.6]} 9. a3 {[%clk 0:03:01.6]} 9... Bxc3 {[%clk
0:02:37.4]} 10. bxc3 {[%clk 0:02:57]} 10... Nc6 {[%clk 0:02:36.5]} 11. O-O
{[%clk 0:02:56.5]} 11... Bg4 {[%clk 0:02:24.4]} 12. f3 {[%clk 0:02:52.5]} 12...
Bh5 {[%clk 0:02:25.3]} 13. Nf4 {[%clk 0:02:53.1]} 13... Bg6 {[%clk 0:02:21.6]}
14. Nxg6 {[%clk 0:02:48.7]} 14... hxg6 {[%clk 0:02:23.5]} 15. Rb1 {[%clk
0:02:40.6]} 15... Qc7 {[%clk 0:02:17]} 16. Qc1 {[%clk 0:02:13.3]} 16... Rac8
{[%clk 0:02:16.3]} 17. Qb2 {[%clk 0:01:38.7]} 17... b6 {[%clk 0:02:17.1]} 18.
Rfe1 {[%clk 0:01:38.3]} 18... Na5 {[%clk 0:02:14.2]} 19. e4 {[%clk 0:01:25.1]}
19... dxe4 {[%clk 0:01:55.5]} 20. fxe4 {[%clk 0:01:22.4]} 20... cxd4 {[%clk
0:01:56.4]} 21. cxd4 {[%clk 0:01:23.3]} 21... Nc4 {[%clk 0:01:57.1]} 22. Qb4
{[%clk 0:00:38.7]} 22... Nxd2 {[%clk 0:01:38.4]} 23. Qxd2 {[%clk 0:00:39.2]}
23... Qc3 {[%clk 0:01:38.7]} 24. Qe3 {[%clk 0:00:23.6]} 24... Ng4 {[%clk
0:01:35.8]} 25. Qg3 {[%clk 0:00:13]} 25... Qxd4+ {[%clk 0:01:35.4]} 26. Kf1
{[%clk 0:00:14.4]} 26... Ne5 {[%clk 0:00:58.4]} 27. Rbd1 {[%clk 0:00:11.8]}
27... Re6 {[%clk 0:00:42.6]} 28. Bb5 {[%clk 0:00:04.1]} 28... Rf6+ {[%clk
0:00:43.3]} 0-1

[Event "*** Titled Tuesday Blitz"]
[Site "Chess.com"]
[Date "2020.01.07"]
[Round "4"]
[White "Hrant_ChessMood"]
[Black "vanea_03"]
[Result "1-0"]
[WhiteElo "2928"]
[BlackElo "2695"]
[TimeControl "180+2"]
[EndTime "13:53:54 PST"]
[Termination "Hrant_ChessMood won by resignation"]

1. e4 {[%clk 0:02:53.7]} 1... e5 {[%clk 0:03:00.6]} 2. Nf3 {[%clk 0:02:54.6]}
2... Nc6 {[%clk 0:03:01.9]} 3. Bc4 {[%clk 0:02:55.9]} 3... Nf6 {[%clk
0:03:02.6]} 4. Ng5 {[%clk 0:02:56.5]} 4... d5 {[%clk 0:03:03.6]} 5. exd5 {[%clk
0:02:57.9]} 5... Na5 {[%clk 0:03:05.2]} 6. Bb5+ {[%clk 0:02:59.1]} 6... c6
{[%clk 0:03:06.7]} 7. dxc6 {[%clk 0:03:00.5]} 7... bxc6 {[%clk 0:03:08.6]} 8.
Bd3 {[%clk 0:03:02]} 8... Be7 {[%clk 0:02:58.6]} 9. O-O {[%clk 0:02:05.7]} 9...
Nd5 {[%clk 0:02:38]} 10. Nf3 {[%clk 0:02:05.8]} 10... Bg4 {[%clk 0:02:38.9]} 11.
h3 {[%clk 0:02:02.8]} 11... Bh5 {[%clk 0:02:34.8]} 12. Re1 {[%clk 0:02:02]}
12... f6 {[%clk 0:02:16.5]} 13. Bf1 {[%clk 0:01:54.2]} 13... O-O {[%clk
0:02:06.7]} 14. d4 {[%clk 0:01:54.7]} 14... exd4 {[%clk 0:01:57.2]} 15. g4
{[%clk 0:01:54.9]} 15... Bf7 {[%clk 0:01:50.4]} 16. Nxd4 {[%clk 0:01:54.5]}
16... Qd7 {[%clk 0:01:38.6]} 17. Nf5 {[%clk 0:01:52.7]} 17... Bc5 {[%clk
0:01:30.8]} 18. c4 {[%clk 0:01:50.6]} 18... Nb6 {[%clk 0:01:16.5]} 19. Qxd7
{[%clk 0:01:50.8]} 19... Nxd7 {[%clk 0:01:18.4]} 20. b3 {[%clk 0:01:52.7]} 20...
Bg6 {[%clk 0:01:13.3]} 21. Bd2 {[%clk 0:01:40.9]} 21... Bxf5 {[%clk 0:01:03.2]}
22. gxf5 {[%clk 0:01:42.8]} 22... Bd4 {[%clk 0:00:53.9]} 23. Nc3 {[%clk
0:01:37.5]} 23... Ne5 {[%clk 0:00:53.5]} 24. Be2 {[%clk 0:01:29.1]} 24... Rad8
{[%clk 0:00:46.6]} 25. Rad1 {[%clk 0:01:28.9]} 25... Rfe8 {[%clk 0:00:45.9]} 26.
Ne4 {[%clk 0:01:25.6]} 26... Nb7 {[%clk 0:00:46.1]} 27. Kf1 {[%clk 0:01:25.4]}
27... Nd6 {[%clk 0:00:42.2]} 28. Nxd6 {[%clk 0:01:26]} 28... Rxd6 {[%clk
0:00:43.8]} 29. f4 {[%clk 0:01:25.2]} 29... Nf7 {[%clk 0:00:37.3]} 30. Bf3
{[%clk 0:01:26.3]} 30... Rxe1+ {[%clk 0:00:34.7]} 31. Bxe1 {[%clk 0:01:28.2]}
31... Kf8 {[%clk 0:00:31]} 32. Bb4 {[%clk 0:01:27]} 32... c5 {[%clk 0:00:28.4]}
33. Be1 {[%clk 0:01:20.5]} 33... Be3 {[%clk 0:00:27.2]} 34. Bd5 {[%clk
0:01:14.6]} 34... Bxf4 {[%clk 0:00:27.6]} 35. Bf2 {[%clk 0:01:16.1]} 35... Ra6
{[%clk 0:00:24.4]} 36. Bxc5+ {[%clk 0:01:16.8]} 36... Bd6 {[%clk 0:00:25.9]} 37.
Bb7 {[%clk 0:01:14.2]} 1-0

[Event "*** Titled Tuesday Blitz"]
[Site "Chess.com"]
[Date "2020.01.07"]
[Round "4"]
[White "Ginzburg_Yakov"]
[Black "Yaacovn"]
[Result "0-1"]
[WhiteElo "2567"]
[BlackElo "2810"]
[TimeControl "180+2"]
[EndTime "13:53:59 PST"]
[Termination "Yaacovn won on time"]

1. e4 {[%clk 0:03:01.7]} 1... c6 {[%clk 0:03:01.1]} 2. d4 {[%clk 0:03:00.4]}
2... d5 {[%clk 0:03:03]} 3. Nc3 {[%clk 0:03:01.5]} 3... dxe4 {[%clk 0:03:03.8]}
4. Nxe4 {[%clk 0:03:02.3]} 4... Nf6 {[%clk 0:03:05.2]} 5. Nxf6+ {[%clk
0:03:02.1]} 5... gxf6 {[%clk 0:03:07.1]} 6. c3 {[%clk 0:03:00.2]} 6... Qd5
{[%clk 0:03:06.3]} 7. Qf3 {[%clk 0:02:36.9]} 7... Bf5 {[%clk 0:03:03.8]} 8. Qxd5
{[%clk 0:02:22]} 8... cxd5 {[%clk 0:03:05.7]} 9. Ne2 {[%clk 0:02:17.3]} 9... Nc6
{[%clk 0:03:03.8]} 10. Ng3 {[%clk 0:02:18.1]} 10... Bg6 {[%clk 0:03:04.4]} 11.
h4 {[%clk 0:02:18.2]} 11... h5 {[%clk 0:03:04.8]} 12. Be3 {[%clk 0:02:05.7]}
12... e6 {[%clk 0:03:03.3]} 13. Bb5 {[%clk 0:01:35.8]} 13... a6 {[%clk
0:03:00.8]} 14. Bxc6+ {[%clk 0:01:35.7]} 14... bxc6 {[%clk 0:03:01.6]} 15. Kd2
{[%clk 0:01:34.8]} 15... Kd7 {[%clk 0:02:57.1]} 16. b4 {[%clk 0:01:34.1]} 16...
a5 {[%clk 0:02:56.3]} 17. a3 {[%clk 0:01:32.1]} 17... Bd6 {[%clk 0:02:57.2]} 18.
Ne2 {[%clk 0:01:32.2]} 18... e5 {[%clk 0:02:57.7]} 19. f4 {[%clk 0:01:30.1]}
19... e4 {[%clk 0:02:51.7]} 20. Rhf1 {[%clk 0:01:20.7]} 20... Bf5 {[%clk
0:02:49.2]} 21. Ng3 {[%clk 0:01:16.5]} 21... Ke6 {[%clk 0:02:48.1]} 22. Ke2
{[%clk 0:00:36.7]} 22... Rhg8 {[%clk 0:02:45.3]} 23. Kf2 {[%clk 0:00:32.8]}
23... Rg4 {[%clk 0:02:29.9]} 24. Nxf5 {[%clk 0:00:33.3]} 24... Kxf5 {[%clk
0:02:30.3]} 25. g3 {[%clk 0:00:35.2]} 25... Rgg8 {[%clk 0:02:28.3]} 26. Rfb1
{[%clk 0:00:31.2]} 26... Rgb8 {[%clk 0:02:24.4]} 27. Bd2 {[%clk 0:00:26.7]}
27... Ke6 {[%clk 0:02:20.1]} 28. a4 {[%clk 0:00:23.9]} 28... axb4 {[%clk
0:02:01.8]} 29. cxb4 {[%clk 0:00:24.7]} 29... Kd7 {[%clk 0:01:57.2]} 30. Bc3
{[%clk 0:00:22.3]} 30... Rb7 {[%clk 0:01:53.6]} 31. b5 {[%clk 0:00:18.2]} 31...
cxb5 {[%clk 0:01:52.4]} 32. Rxb5 {[%clk 0:00:15.1]} 32... Rxb5 {[%clk
0:01:51.6]} 33. axb5 {[%clk 0:00:16.6]} 33... Rxa1 {[%clk 0:01:52.3]} 34. Bxa1
{[%clk 0:00:18.3]} 34... Kc7 {[%clk 0:01:53.9]} 35. Ke3 {[%clk 0:00:16.5]} 35...
Kb6 {[%clk 0:01:55.1]} 36. Bc3 {[%clk 0:00:13.3]} 36... f5 {[%clk 0:01:54.2]}
37. Be1 {[%clk 0:00:08.9]} 37... Kxb5 {[%clk 0:01:55.1]} 38. Bd2 {[%clk
0:00:08.6]} 38... Bb4 {[%clk 0:01:52.5]} 39. Bc1 {[%clk 0:00:09.5]} 39... Kc4
{[%clk 0:01:53.6]} 40. g4 {[%clk 0:00:04.4]} 40... fxg4 {[%clk 0:01:54.2]} 41.
f5 {[%clk 0:00:05.7]} 41... Be7 {[%clk 0:01:50.6]} 42. Kf4 {[%clk 0:00:05.1]}
42... Bxh4 {[%clk 0:01:51.4]} 0-1

[Event "*** Titled Tuesday Blitz"]
[Site "Chess.com"]
[Date "2020.01.07"]
[Round "4"]
[White "maciek_92"]
[Black "volcanoexplorer"]
[Result "1-0"]
[WhiteElo "2805"]
[BlackElo "2559"]
[TimeControl "180+2"]
[EndTime "13:53:59 PST"]
[Termination "maciek_92 won by resignation"]

1. e4 {[%clk 0:03:01.9]} 1... e5 {[%clk 0:03:00.8]} 2. Nf3 {[%clk 0:03:02.1]}
2... Nc6 {[%clk 0:03:02.1]} 3. Bb5 {[%clk 0:03:02.7]} 3... a6 {[%clk 0:03:03.1]}
4. Ba4 {[%clk 0:03:03.9]} 4... Nf6 {[%clk 0:03:04.4]} 5. O-O {[%clk 0:03:04.9]}
5... Be7 {[%clk 0:03:06]} 6. Re1 {[%clk 0:03:06]} 6... b5 {[%clk 0:03:07.4]} 7.
Bb3 {[%clk 0:03:06.9]} 7... O-O {[%clk 0:03:09.1]} 8. a4 {[%clk 0:03:02.6]} 8...
b4 {[%clk 0:03:09.8]} 9. a5 {[%clk 0:02:55.9]} 9... d6 {[%clk 0:03:00.9]} 10. h3
{[%clk 0:02:46.9]} 10... Be6 {[%clk 0:02:50.6]} 11. Bxe6 {[%clk 0:02:27.3]}
11... fxe6 {[%clk 0:02:52.5]} 12. d3 {[%clk 0:02:27.1]} 12... Qe8 {[%clk
0:02:42.8]} 13. Nbd2 {[%clk 0:02:26.3]} 13... Nh5 {[%clk 0:02:38.7]} 14. Nf1
{[%clk 0:02:20.9]} 14... Qg6 {[%clk 0:02:35.4]} 15. c3 {[%clk 0:01:56.6]} 15...
bxc3 {[%clk 0:02:32.9]} 16. bxc3 {[%clk 0:01:58.5]} 16... Rf7 {[%clk 0:02:30]}
17. N1h2 {[%clk 0:01:51.6]} 17... Raf8 {[%clk 0:02:29]} 18. Be3 {[%clk
0:01:51.2]} 18... d5 {[%clk 0:02:16.5]} 19. Qa4 {[%clk 0:01:45]} 19... dxe4
{[%clk 0:01:49]} 20. dxe4 {[%clk 0:01:36.8]} 20... Rxf3 {[%clk 0:00:44.3]} 21.
Nxf3 {[%clk 0:01:38.7]} 21... Rxf3 {[%clk 0:00:45]} 22. Qxc6 {[%clk 0:01:39.6]}
22... Rxh3 {[%clk 0:00:37]} 23. Rab1 {[%clk 0:01:26.9]} 23... Bf8 {[%clk
0:00:05]} 24. Rb8 {[%clk 0:01:26.1]} 24... Rh4 {[%clk 0:00:03.2]} 25. Qe8 {[%clk
0:01:08.3]} 25... Qf7 {[%clk 0:00:03.2]} 26. Bc5 {[%clk 0:01:01.3]} 26... Rf4
{[%clk 0:00:03.9]} 27. Qxf8+ {[%clk 0:01:01.3]} 27... Qxf8 {[%clk 0:00:05.3]}
28. Rxf8+ {[%clk 0:01:03.1]} 28... Rxf8 {[%clk 0:00:07]} 29. Bxf8 {[%clk
0:01:04.8]} 29... Kxf8 {[%clk 0:00:08.9]} 30. Rb1 {[%clk 0:01:05]} 30... Nf6
{[%clk 0:00:10.1]} 31. f3 {[%clk 0:01:05.4]} 31... Ke7 {[%clk 0:00:11.4]} 32.
Rb7 {[%clk 0:01:04.8]} 32... Kd7 {[%clk 0:00:12.7]} 33. Ra7 {[%clk 0:01:06.2]}
33... Ne8 {[%clk 0:00:13.5]} 34. Rxa6 {[%clk 0:01:07.4]} 34... Nd6 {[%clk
0:00:14.6]} 35. Ra8 {[%clk 0:01:08.3]} 35... Nc8 {[%clk 0:00:16.1]} 36. Rb8
{[%clk 0:01:08.1]} 36... Na7 {[%clk 0:00:15.6]} 37. a6 {[%clk 0:01:08.1]} 37...
Kc6 {[%clk 0:00:16.7]} 38. Kf2 {[%clk 0:01:07.1]} 1-0

[Event "*** Titled Tuesday Blitz"]
[Site "Chess.com"]
[Date "2020.01.07"]
[Round "4"]
[White "Benjoneliere44"]
[Black "Alexander_Donchenko"]
[Result "1-0"]
[WhiteElo "2558"]
[BlackElo "2738"]
[TimeControl "180+2"]
[EndTime "13:53:59 PST"]
[Termination "Benjoneliere44 won by resignation"]

1. d4 {[%clk 0:03:01.9]} 1... Nf6 {[%clk 0:03:00.7]} 2. Bf4 {[%clk 0:03:02.1]}
2... g6 {[%clk 0:03:01.1]} 3. Nc3 {[%clk 0:03:01.7]} 3... Bg7 {[%clk 0:03:00.3]}
4. e4 {[%clk 0:03:01.7]} 4... d6 {[%clk 0:03:01.7]} 5. Qd2 {[%clk 0:03:02.3]}
5... c6 {[%clk 0:03:00.5]} 6. O-O-O {[%clk 0:03:01]} 6... O-O {[%clk 0:02:52.2]}
7. Bh6 {[%clk 0:03:01]} 7... Nbd7 {[%clk 0:02:50.4]} 8. h4 {[%clk 0:02:55.2]}
8... e5 {[%clk 0:02:47.7]} 9. dxe5 {[%clk 0:02:51.6]} 9... dxe5 {[%clk
0:02:47.7]} 10. f3 {[%clk 0:02:37.5]} 10... Qe7 {[%clk 0:02:37.9]} 11. h5 {[%clk
0:02:20.7]} 11... Nxh5 {[%clk 0:02:37.3]} 12. Nge2 {[%clk 0:02:07.6]} 12... Re8
{[%clk 0:01:56]} 13. g4 {[%clk 0:02:03.1]} 13... Nf4 {[%clk 0:01:46]} 14. Bxg7
{[%clk 0:01:55.7]} 14... Kxg7 {[%clk 0:01:45.7]} 15. Nxf4 {[%clk 0:01:55.5]}
15... exf4 {[%clk 0:01:47.4]} 16. Qxf4 {[%clk 0:01:57.2]} 16... g5 {[%clk
0:01:47.9]} 17. Qh2 {[%clk 0:01:54.7]} 17... Nf8 {[%clk 0:01:32.6]} 18. Qh6+
{[%clk 0:01:53.4]} 18... Kg8 {[%clk 0:01:33.9]} 19. Rh5 {[%clk 0:01:49]} 19...
f6 {[%clk 0:01:30.8]} 20. e5 {[%clk 0:01:28.9]} 20... Qxe5 {[%clk 0:01:26.4]}
21. Ne4 {[%clk 0:01:25.6]} 21... Qf4+ {[%clk 0:01:24.3]} 22. Kb1 {[%clk
0:01:12.1]} 22... Rxe4 {[%clk 0:01:25]} 23. fxe4 {[%clk 0:01:07.1]} 23... Bxg4
{[%clk 0:01:19.9]} 24. Bc4+ {[%clk 0:01:06.8]} 24... Kh8 {[%clk 0:01:16]} 25.
Rf1 {[%clk 0:01:05]} 25... Rd8 {[%clk 0:01:11.4]} 26. a4 {[%clk 0:00:42.7]}
26... Bf3 {[%clk 0:00:22.7]} 27. Rh3 {[%clk 0:00:42.5]} 27... Qe5 {[%clk
0:00:05.4]} 28. Rhxf3 {[%clk 0:00:41.4]} 28... g4 {[%clk 0:00:03.9]} 29. Rxf6
{[%clk 0:00:39.8]} 1-0

[Event "*** Titled Tuesday Blitz"]
[Site "Chess.com"]
[Date "2020.01.07"]
[Round "4"]
[White "JonahWillow"]
[Black "Parhamov"]
[Result "1-0"]
[WhiteElo "2802"]
[BlackElo "3056"]
[TimeControl "180+2"]
[EndTime "13:54:01 PST"]
[Termination "JonahWillow won by resignation"]

1. e4 {[%clk 0:03:01.9]} 1... e5 {[%clk 0:03:00.7]} 2. Nf3 {[%clk 0:03:02.9]}
2... Nc6 {[%clk 0:03:02.4]} 3. Nc3 {[%clk 0:03:04.4]} 3... Nf6 {[%clk
0:03:03.5]} 4. Bb5 {[%clk 0:03:05.9]} 4... Bb4 {[%clk 0:03:04.4]} 5. O-O {[%clk
0:03:06.7]} 5... O-O {[%clk 0:03:03.6]} 6. d3 {[%clk 0:03:08]} 6... d6 {[%clk
0:02:54.5]} 7. Bg5 {[%clk 0:03:08.4]} 7... Bxc3 {[%clk 0:02:53]} 8. bxc3 {[%clk
0:03:10.3]} 8... Ne7 {[%clk 0:02:54.2]} 9. Nh4 {[%clk 0:02:54.1]} 9... Ng6
{[%clk 0:02:39]} 10. Qf3 {[%clk 0:02:35.9]} 10... h6 {[%clk 0:02:37.5]} 11. Bxf6
{[%clk 0:02:24.7]} 11... Nxh4 {[%clk 0:02:29.7]} 12. Bxh4 {[%clk 0:02:15.5]}
12... Qxh4 {[%clk 0:02:29.6]} 13. Bc4 {[%clk 0:02:17.4]} 13... Be6 {[%clk
0:02:29.5]} 14. Bb3 {[%clk 0:02:06.4]} 14... a5 {[%clk 0:02:27.4]} 15. Rab1
{[%clk 0:02:06.5]} 15... b6 {[%clk 0:02:27.8]} 16. Qe3 {[%clk 0:02:02.9]} 16...
Bxb3 {[%clk 0:02:25.1]} 17. axb3 {[%clk 0:01:54.9]} 17... f5 {[%clk 0:02:27]}
18. exf5 {[%clk 0:01:47.7]} 18... Rxf5 {[%clk 0:02:28]} 19. Qe4 {[%clk
0:01:48.8]} 19... Qxe4 {[%clk 0:02:27.6]} 20. dxe4 {[%clk 0:01:50.7]} 20... Rff8
{[%clk 0:02:28.5]} 21. Rfd1 {[%clk 0:01:49.9]} 21... a4 {[%clk 0:02:27]} 22. Ra1
{[%clk 0:01:44.9]} 22... a3 {[%clk 0:02:22.7]} 23. Ra2 {[%clk 0:01:43.4]} 23...
Ra7 {[%clk 0:02:22]} 24. f3 {[%clk 0:01:44.2]} 24... Kf7 {[%clk 0:02:22.8]} 25.
Kf2 {[%clk 0:01:45.1]} 25... Ke6 {[%clk 0:02:24.3]} 26. Ke3 {[%clk 0:01:46.2]}
26... c5 {[%clk 0:02:25.3]} 27. c4 {[%clk 0:01:44.6]} 27... g5 {[%clk
0:02:23.9]} 28. Rda1 {[%clk 0:01:37.7]} 28... Rfa8 {[%clk 0:02:24]} 29. Rf1
{[%clk 0:01:36]} 29... h5 {[%clk 0:02:24.7]} 30. h3 {[%clk 0:01:31.9]} 30... g4
{[%clk 0:02:22.4]} 31. hxg4 {[%clk 0:01:26.1]} 31... hxg4 {[%clk 0:02:24.3]} 32.
fxg4 {[%clk 0:01:11.3]} 32... Rg8 {[%clk 0:02:24.8]} 33. Rfa1 {[%clk 0:01:11.9]}
33... Rxg4 {[%clk 0:02:25.9]} 34. Rxa3 {[%clk 0:01:11.9]} 34... Rag7 {[%clk
0:02:27.3]} 35. Rg1 {[%clk 0:01:08.9]} 35... Rg3+ {[%clk 0:02:28.4]} 36. Kd2
{[%clk 0:01:09.8]} 36... R7g4 {[%clk 0:02:29.2]} 37. Ra6 {[%clk 0:01:09.3]}
37... Rxe4 {[%clk 0:02:29.6]} 38. Rxb6 {[%clk 0:01:08.9]} 38... Rd4+ {[%clk
0:02:29.1]} 39. Ke2 {[%clk 0:01:05.7]} 39... Rc3 {[%clk 0:02:29.2]} 40. Rc1
{[%clk 0:01:03.7]} 40... e4 {[%clk 0:02:18.2]} 41. Rb8 {[%clk 0:01:02.2]} 41...
Ke7 {[%clk 0:02:11.1]} 42. Rb7+ {[%clk 0:00:44.6]} 42... Ke6 {[%clk 0:02:07.9]}
43. Rb8 {[%clk 0:00:45.3]} 43... Kd7 {[%clk 0:02:07.9]} 44. Rb7+ {[%clk
0:00:45.4]} 44... Kc8 {[%clk 0:02:08.8]} 45. Re7 {[%clk 0:00:46.1]} 45... Kd8
{[%clk 0:02:10.2]} 46. Rg7 {[%clk 0:00:35.6]} 46... e3 {[%clk 0:02:02.8]} 47.
Ra1 {[%clk 0:00:35.5]} 47... Rxc2+ {[%clk 0:02:01.9]} 48. Kxe3 {[%clk
0:00:30.7]} 48... Rc3+ {[%clk 0:02:00.8]} 49. Kf2 {[%clk 0:00:31.6]} 49... Rc2+
{[%clk 0:02:01.2]} 50. Kg1 {[%clk 0:00:31.1]} 1-0

[Event "*** Titled Tuesday Blitz"]
[Site "Chess.com"]
[Date "2020.01.07"]
[Round "4"]
[White "SavelijTartakover"]
[Black "SavelievAlexei"]
[Result "1-0"]
[WhiteElo "2715"]
[BlackElo "2323"]
[TimeControl "180+2"]
[EndTime "13:54:01 PST"]
[Termination "SavelijTartakover won on time"]

1. d4 {[%clk 0:03:01.9]} 1... Nf6 {[%clk 0:03:00.7]} 2. c4 {[%clk 0:03:02.2]}
2... e6 {[%clk 0:03:01.8]} 3. Nf3 {[%clk 0:03:02.6]} 3... b6 {[%clk 0:02:59.2]}
4. g3 {[%clk 0:03:03]} 4... Bb7 {[%clk 0:02:58.7]} 5. Bg2 {[%clk 0:03:03.3]}
5... Be7 {[%clk 0:02:58.7]} 6. O-O {[%clk 0:03:04]} 6... O-O {[%clk 0:02:59.1]}
7. Nc3 {[%clk 0:03:04.8]} 7... Ne4 {[%clk 0:02:57.2]} 8. Bd2 {[%clk 0:03:05.4]}
8... f5 {[%clk 0:02:56.4]} 9. d5 {[%clk 0:03:04.8]} 9... exd5 {[%clk 0:02:48.7]}
10. Nxd5 {[%clk 0:02:58.8]} 10... Bd6 {[%clk 0:02:28.3]} 11. Bf4 {[%clk
0:02:53.4]} 11... Bxf4 {[%clk 0:02:25.1]} 12. Nxf4 {[%clk 0:02:53.7]} 12... Qf6
{[%clk 0:01:57.2]} 13. Nd5 {[%clk 0:02:37.5]} 13... Qd6 {[%clk 0:01:56.9]} 14.
Nd4 {[%clk 0:02:34.7]} 14... c6 {[%clk 0:01:53.4]} 15. Nf4 {[%clk 0:02:19.3]}
15... g6 {[%clk 0:01:22.2]} 16. e3 {[%clk 0:02:01.8]} 16... Na6 {[%clk
0:01:22.5]} 17. Qe2 {[%clk 0:01:55.8]} 17... Rae8 {[%clk 0:01:14]} 18. Rfd1
{[%clk 0:01:55.4]} 18... Qe7 {[%clk 0:00:49.6]} 19. h4 {[%clk 0:01:51.7]} 19...
Nc7 {[%clk 0:00:49.5]} 20. Rac1 {[%clk 0:01:40.6]} 20... Ba6 {[%clk 0:00:28]}
21. b3 {[%clk 0:01:29.3]} 21... Qg7 {[%clk 0:00:23.9]} 22. Qc2 {[%clk
0:01:21.7]} 22... Bb7 {[%clk 0:00:23.2]} 23. Nf3 {[%clk 0:01:16.4]} 23... Ne6
{[%clk 0:00:18.1]} 24. Nxe6 {[%clk 0:01:10]} 24... dxe6 {[%clk 0:00:18.5]} 25.
Ng5 {[%clk 0:01:08.7]} 25... Nxg5 {[%clk 0:00:03.4]} 26. hxg5 {[%clk 0:01:10.6]}
26... Re7 {[%clk 0:00:04.6]} 27. Rd6 {[%clk 0:01:04.4]} 27... Rc8 {[%clk
0:00:02.7]} 28. Rcd1 {[%clk 0:01:01.5]} 28... e5 {[%clk 0:00:03]} 29. c5 {[%clk
0:00:58.5]} 1-0